[Event "*** SCC Grand Prix: Titled Tuesday Blitz"]
[Site "Chess.com"]
[Date "2020.10.13"]
[Round "3"]
[White "sopo-tereladze"]
[Black "WiktoriaPOL"]
[Result "0-1"]
[WhiteElo "2288"]
[BlackElo "2064"]
[TimeControl "180+1"]
[EndTime "10:25:33 PDT"]
[Termination "WiktoriaPOL won by resignation"]

1. e4 {[%clk 0:03:00.9]} 1... c5 {[%clk 0:02:59.3]} 2. Nf3 {[%clk 0:02:59.9]}
2... g6 {[%clk 0:02:58.7]} 3. d4 {[%clk 0:03:00.8]} 3... cxd4 {[%clk 0:02:58.3]}
4. Qxd4 {[%clk 0:03:00.1]} 4... Nf6 {[%clk 0:02:57.6]} 5. e5 {[%clk 0:03:00.3]}
5... Nc6 {[%clk 0:02:57]} 6. Qa4 {[%clk 0:02:59.4]} 6... Nd5 {[%clk 0:02:55.7]}
7. c4 {[%clk 0:02:58.1]} 7... Nb6 {[%clk 0:02:52.7]} 8. Qc2 {[%clk 0:02:58.2]}
8... Bg7 {[%clk 0:02:48.5]} 9. Bf4 {[%clk 0:02:58.6]} 9... O-O {[%clk
0:02:34.6]} 10. Nc3 {[%clk 0:02:58.1]} 10... a6 {[%clk 0:02:28.6]} 11. a3 {[%clk
0:02:52.6]} 11... d6 {[%clk 0:02:17.9]} 12. exd6 {[%clk 0:02:46.2]} 12... exd6
{[%clk 0:02:17.7]} 13. O-O-O {[%clk 0:02:47.1]} 13... Qf6 {[%clk 0:02:16.5]} 14.
Bg5 {[%clk 0:02:42.8]} 14... Qf5 {[%clk 0:02:09.1]} 15. Bd3 {[%clk 0:02:39.5]}
15... Qg4 {[%clk 0:02:04.3]} 16. h3 {[%clk 0:02:32.9]} 16... Qxg2 {[%clk
0:01:58.1]} 17. Be4 {[%clk 0:02:30.3]} 17... f5 {[%clk 0:01:55.6]} 18. Rdg1
{[%clk 0:02:00.8]} 18... Qxh1 {[%clk 0:01:48.4]} 19. Rxh1 {[%clk 0:02:00.3]}
19... fxe4 {[%clk 0:01:47.8]} 20. Nxe4 {[%clk 0:01:54.8]} 20... Rxf3 {[%clk
0:01:45.8]} 21. Nxd6 {[%clk 0:01:51.3]} 21... Nd4 {[%clk 0:01:38.3]} 22. Qe4
{[%clk 0:01:47.1]} 22... Bf5 {[%clk 0:01:35.4]} 23. Qd5+ {[%clk 0:01:40.5]}
23... Nxd5 {[%clk 0:01:34.1]} 0-1

[Event "*** SCC Grand Prix: Titled Tuesday Blitz"]
[Site "Chess.com"]
[Date "2020.10.13"]
[Round "3"]
[White "korkmaz16"]
[Black "Jabberwockiez"]
[Result "1-0"]
[WhiteElo "2396"]
[BlackElo "2223"]
[TimeControl "180+1"]
[EndTime "10:25:36 PDT"]
[Termination "korkmaz16 won by resignation"]

1. e4 {[%clk 0:03:00.9]} 1... c5 {[%clk 0:02:59.7]} 2. Nc3 {[%clk 0:03:00.1]}
2... Nc6 {[%clk 0:02:59.3]} 3. f4 {[%clk 0:02:59.6]} 3... g6 {[%clk 0:02:59]} 4.
Nf3 {[%clk 0:02:59.7]} 4... Bg7 {[%clk 0:02:59.5]} 5. Bb5 {[%clk 0:02:59.8]}
5... e6 {[%clk 0:02:58.4]} 6. Bxc6 {[%clk 0:02:56.7]} 6... bxc6 {[%clk
0:02:57.7]} 7. O-O {[%clk 0:02:55]} 7... d5 {[%clk 0:02:56.8]} 8. d3 {[%clk
0:02:55.1]} 8... Ne7 {[%clk 0:02:56.3]} 9. Qe1 {[%clk 0:02:54.7]} 9... O-O
{[%clk 0:02:53.7]} 10. Qh4 {[%clk 0:02:53.6]} 10... f5 {[%clk 0:02:34.6]} 11.
exd5 {[%clk 0:02:36.6]} 11... cxd5 {[%clk 0:02:33]} 12. Re1 {[%clk 0:02:32.3]}
12... d4 {[%clk 0:02:28.7]} 13. Na4 {[%clk 0:02:20.4]} 13... Qa5 {[%clk
0:02:16.3]} 14. b3 {[%clk 0:02:19.3]} 14... Bb7 {[%clk 0:02:14.3]} 15. Qxe7
{[%clk 0:02:09.6]} 15... Bxf3 {[%clk 0:02:04.1]} 16. Qxe6+ {[%clk 0:02:09.3]}
16... Kh8 {[%clk 0:02:02.3]} 17. gxf3 {[%clk 0:02:09.7]} 17... c4 {[%clk
0:01:40.8]} 18. Ba3 {[%clk 0:02:03.7]} 18... Rfc8 {[%clk 0:01:24.5]} 19. dxc4
{[%clk 0:01:57.9]} 19... d3 {[%clk 0:01:24.2]} 20. cxd3 {[%clk 0:01:58.1]} 20...
Bxa1 {[%clk 0:01:23.4]} 21. Rxa1 {[%clk 0:01:57.8]} 1-0

[Event "*** SCC Grand Prix: Titled Tuesday Blitz"]
[Site "Chess.com"]
[Date "2020.10.13"]
[Round "3"]
[White "Iskusnyh"]
[Black "PowerThinking2650"]
[Result "1-0"]
[WhiteElo "2572"]
[BlackElo "2373"]
[TimeControl "180+1"]
[EndTime "10:25:45 PDT"]
[Termination "Iskusnyh won by resignation"]

1. d4 {[%clk 0:03:00.9]} 1... Nf6 {[%clk 0:02:59.5]} 2. c4 {[%clk 0:03:01.1]}
2... g6 {[%clk 0:02:59.9]} 3. g3 {[%clk 0:03:01.1]} 3... Bg7 {[%clk 0:03:00.3]}
4. Bg2 {[%clk 0:03:01.1]} 4... O-O {[%clk 0:03:00.8]} 5. Nc3 {[%clk 0:03:01.3]}
5... d6 {[%clk 0:03:01.3]} 6. Nf3 {[%clk 0:03:01.6]} 6... Nbd7 {[%clk
0:03:01.8]} 7. O-O {[%clk 0:03:01.3]} 7... e5 {[%clk 0:03:02.3]} 8. e4 {[%clk
0:03:00.3]} 8... a6 {[%clk 0:03:01.7]} 9. Qc2 {[%clk 0:02:53.9]} 9... exd4
{[%clk 0:02:56.2]} 10. Nxd4 {[%clk 0:02:52.7]} 10... Ng4 {[%clk 0:02:51.8]} 11.
Nde2 {[%clk 0:02:42.4]} 11... Nc5 {[%clk 0:02:44.8]} 12. b3 {[%clk 0:02:24.8]}
12... f5 {[%clk 0:02:31]} 13. h3 {[%clk 0:02:15]} 13... Nf6 {[%clk 0:02:22.6]}
14. e5 {[%clk 0:02:03.4]} 14... dxe5 {[%clk 0:02:18.1]} 15. Ba3 {[%clk
0:02:02.9]} 15... Nfd7 {[%clk 0:02:01]} 16. Rad1 {[%clk 0:01:58.9]} 16... e4
{[%clk 0:01:55.7]} 17. Bxc5 {[%clk 0:01:55.9]} 17... Nxc5 {[%clk 0:01:36.2]} 18.
Rxd8 {[%clk 0:01:54]} 18... Rxd8 {[%clk 0:01:37.1]} 19. Nf4 {[%clk 0:01:44.3]}
19... c6 {[%clk 0:01:34.4]} 20. Rd1 {[%clk 0:01:40.1]} 20... Be6 {[%clk
0:01:30.9]} 21. b4 {[%clk 0:01:29.3]} 1-0

[Event "*** SCC Grand Prix: Titled Tuesday Blitz"]
[Site "Chess.com"]
[Date "2020.10.13"]
[Round "3"]
[White "maciek_92"]
[Black "Semen16"]
[Result "0-1"]
[WhiteElo "2749"]
[BlackElo "2468"]
[TimeControl "180+1"]
[EndTime "10:25:55 PDT"]
[Termination "Semen16 won by resignation"]

1. e4 {[%clk 0:03:00.9]} 1... e5 {[%clk 0:02:59.8]} 2. Nf3 {[%clk 0:02:59]} 2...
Nc6 {[%clk 0:02:59.9]} 3. c3 {[%clk 0:02:58.4]} 3... d5 {[%clk 0:02:58.2]} 4.
Qa4 {[%clk 0:02:59]} 4... Nf6 {[%clk 0:02:51.8]} 5. Nxe5 {[%clk 0:02:58.3]} 5...
Bd6 {[%clk 0:02:43]} 6. d4 {[%clk 0:02:53.4]} 6... Nxe4 {[%clk 0:02:30]} 7. Bd3
{[%clk 0:02:37.6]} 7... O-O {[%clk 0:02:26.7]} 8. Nxc6 {[%clk 0:02:37.9]} 8...
bxc6 {[%clk 0:02:25.3]} 9. O-O {[%clk 0:02:37.5]} 9... Qh4 {[%clk 0:02:10.7]}
10. g3 {[%clk 0:02:37.5]} 10... Qh3 {[%clk 0:01:47.2]} 11. Qc2 {[%clk
0:02:31.1]} 11... f5 {[%clk 0:01:39.9]} 12. f3 {[%clk 0:02:30.5]} 12... Nf6
{[%clk 0:01:26.4]} 13. Qg2 {[%clk 0:02:30.2]} 13... Qh5 {[%clk 0:01:24.6]} 14.
Re1 {[%clk 0:02:29.2]} 14... f4 {[%clk 0:01:21.5]} 15. g4 {[%clk 0:02:27.7]}
15... Nxg4 {[%clk 0:01:21.6]} 16. fxg4 {[%clk 0:02:26.3]} 16... Bxg4 {[%clk
0:01:22.5]} 17. Nd2 {[%clk 0:02:22.4]} 17... f3 {[%clk 0:01:18.8]} 18. Qf2
{[%clk 0:02:22.4]} 18... Bxh2+ {[%clk 0:01:18.2]} 19. Qxh2 {[%clk 0:02:13.3]}
19... f2+ {[%clk 0:01:16]} 20. Qxf2 {[%clk 0:02:13.8]} 20... Rxf2 {[%clk
0:01:16.1]} 21. Kxf2 {[%clk 0:02:14.4]} 21... Qh2+ {[%clk 0:01:14]} 22. Ke3
{[%clk 0:02:14.8]} 22... Qg3+ {[%clk 0:00:54.7]} 23. Nf3 {[%clk 0:02:14]} 23...
Bxf3 {[%clk 0:00:52.5]} 24. Kd2 {[%clk 0:02:10.7]} 24... Qf2+ {[%clk 0:00:50.1]}
25. Be2 {[%clk 0:02:03.6]} 25... Re8 {[%clk 0:00:49.4]} 0-1

[Event "*** SCC Grand Prix: Titled Tuesday Blitz"]
[Site "Chess.com"]
[Date "2020.10.13"]
[Round "3"]
[White "VMikhalevski"]
[Black "cholzan"]
[Result "1-0"]
[WhiteElo "2713"]
[BlackElo "2443"]
[TimeControl "180+1"]
[EndTime "10:25:58 PDT"]
[Termination "VMikhalevski won by resignation"]

1. d4 {[%clk 0:03:00.9]} 1... d6 {[%clk 0:03:00.3]} 2. Nf3 {[%clk 0:03:00.4]}
2... Nd7 {[%clk 0:03:00.4]} 3. c4 {[%clk 0:02:58.4]} 3... e5 {[%clk 0:02:59.4]}
4. Nc3 {[%clk 0:02:58.9]} 4... Ngf6 {[%clk 0:02:59.2]} 5. e4 {[%clk 0:02:58.6]}
5... Be7 {[%clk 0:02:59.4]} 6. Be2 {[%clk 0:02:58.6]} 6... O-O {[%clk
0:02:59.9]} 7. O-O {[%clk 0:02:59.2]} 7... c6 {[%clk 0:03:00.4]} 8. Qc2 {[%clk
0:02:57.5]} 8... a6 {[%clk 0:03:00.4]} 9. Rd1 {[%clk 0:02:55.8]} 9... b5 {[%clk
0:03:00.5]} 10. dxe5 {[%clk 0:02:49.5]} 10... dxe5 {[%clk 0:02:58.4]} 11. Nxe5
{[%clk 0:02:49]} 11... Nxe5 {[%clk 0:02:57.7]} 12. Rxd8 {[%clk 0:02:47.9]} 12...
Rxd8 {[%clk 0:02:58.6]} 13. cxb5 {[%clk 0:02:44.7]} 13... cxb5 {[%clk
0:02:58.2]} 14. Bf4 {[%clk 0:02:43.1]} 14... Ng6 {[%clk 0:02:57.1]} 15. Bc7
{[%clk 0:02:39]} 15... Rd7 {[%clk 0:02:52.7]} 16. Bg3 {[%clk 0:02:37]} 16... Bb7
{[%clk 0:02:52.6]} 17. Bf3 {[%clk 0:02:21.9]} 17... b4 {[%clk 0:02:33.4]} 18.
Nd5 {[%clk 0:02:04.1]} 18... Nxd5 {[%clk 0:02:24.3]} 19. exd5 {[%clk 0:02:04]}
19... Bf6 {[%clk 0:02:23.1]} 20. d6 {[%clk 0:01:58.9]} 20... Bxf3 {[%clk
0:02:20.7]} 21. gxf3 {[%clk 0:01:58.5]} 21... Rad8 {[%clk 0:02:14.3]} 22. Re1
{[%clk 0:01:54.2]} 22... Bh4 {[%clk 0:01:54.9]} 23. Bxh4 {[%clk 0:01:26.4]}
23... Nxh4 {[%clk 0:01:55.8]} 24. Qc6 {[%clk 0:01:25.8]} 24... h6 {[%clk
0:01:45.6]} 25. Rd1 {[%clk 0:01:20.9]} 25... Nf5 {[%clk 0:01:42.8]} 26. Qxa6
{[%clk 0:01:20.8]} 26... Rxd6 {[%clk 0:01:39.1]} 27. Rxd6 {[%clk 0:01:20.5]}
27... Rxd6 {[%clk 0:01:40]} 28. Qc8+ {[%clk 0:01:20.2]} 1-0

[Event "*** SCC Grand Prix: Titled Tuesday Blitz"]
[Site "Chess.com"]
[Date "2020.10.13"]
[Round "3"]
[White "Pashinskiy_Mikhail"]
[Black "Stalri"]
[Result "1-0"]
[WhiteElo "2333"]
[BlackElo "2165"]
[TimeControl "180+1"]
[EndTime "10:26:06 PDT"]
[Termination "Pashinskiy_Mikhail won by resignation"]

1. e4 {[%clk 0:03:00.3]} 1... c5 {[%clk 0:02:32.1]} 2. Nc3 {[%clk 0:02:58.6]}
2... e6 {[%clk 0:02:27.8]} 3. Nge2 {[%clk 0:02:58]} 3... Nc6 {[%clk 0:02:24.4]}
4. g3 {[%clk 0:02:57.4]} 4... d5 {[%clk 0:02:23]} 5. exd5 {[%clk 0:02:44.4]}
5... exd5 {[%clk 0:02:23.1]} 6. Bg2 {[%clk 0:02:44.5]} 6... Nf6 {[%clk
0:02:22.7]} 7. d4 {[%clk 0:02:44]} 7... Be6 {[%clk 0:02:21.7]} 8. O-O {[%clk
0:02:43.1]} 8... Be7 {[%clk 0:02:13.9]} 9. dxc5 {[%clk 0:02:39.1]} 9... Bxc5
{[%clk 0:02:14.8]} 10. Bg5 {[%clk 0:02:38.4]} 10... O-O {[%clk 0:02:12]} 11. Nf4
{[%clk 0:02:28.9]} 11... d4 {[%clk 0:02:02]} 12. Ne4 {[%clk 0:02:25.3]} 12...
Be7 {[%clk 0:02:00.1]} 13. Nxe6 {[%clk 0:02:23.9]} 13... fxe6 {[%clk 0:02:00.1]}
14. Re1 {[%clk 0:02:13.4]} 14... Rc8 {[%clk 0:01:57.1]} 15. Qe2 {[%clk
0:02:10.6]} 15... Kh8 {[%clk 0:01:56.7]} 16. Nxf6 {[%clk 0:02:06.8]} 16... Bxf6
{[%clk 0:01:56.2]} 17. Bxf6 {[%clk 0:02:05.8]} 17... Qxf6 {[%clk 0:01:56.9]} 18.
Rad1 {[%clk 0:01:56.3]} 18... e5 {[%clk 0:01:37.2]} 19. Rd2 {[%clk 0:01:51.9]}
19... Rce8 {[%clk 0:01:20.7]} 20. Be4 {[%clk 0:01:50.9]} 20... b6 {[%clk
0:01:11.7]} 21. a3 {[%clk 0:01:50.3]} 21... Nd8 {[%clk 0:01:06.2]} 22. Rd3
{[%clk 0:01:49.8]} 22... Ne6 {[%clk 0:01:04.5]} 23. Rf3 {[%clk 0:01:49.4]} 23...
Qg5 {[%clk 0:01:03.7]} 24. h4 {[%clk 0:01:48.3]} 24... Qg4 {[%clk 0:01:02.2]}
25. Rxf8+ {[%clk 0:01:47.7]} 25... Rxf8 {[%clk 0:01:01.2]} 26. Qxg4 {[%clk
0:01:48.6]} 1-0

[Event "*** SCC Grand Prix: Titled Tuesday Blitz"]
[Site "Chess.com"]
[Date "2020.10.13"]
[Round "3"]
[White "HanSchut"]
[Black "witcher8"]
[Result "0-1"]
[WhiteElo "2239"]
[BlackElo "2442"]
[TimeControl "180+1"]
[EndTime "10:26:09 PDT"]
[Termination "witcher8 won by checkmate"]

1. e4 {[%clk 0:03:00.9]} 1... c6 {[%clk 0:02:59.7]} 2. d4 {[%clk 0:03:00.5]}
2... d5 {[%clk 0:03:00.6]} 3. e5 {[%clk 0:02:56.3]} 3... Bf5 {[%clk 0:02:59.9]}
4. Nf3 {[%clk 0:02:55.3]} 4... e6 {[%clk 0:02:59.3]} 5. Be2 {[%clk 0:02:53.5]}
5... Nd7 {[%clk 0:02:59.8]} 6. O-O {[%clk 0:02:51.6]} 6... h6 {[%clk 0:03:00.3]}
7. c4 {[%clk 0:02:50.4]} 7... Ne7 {[%clk 0:02:58.5]} 8. cxd5 {[%clk 0:02:50.9]}
8... cxd5 {[%clk 0:02:58.2]} 9. Nc3 {[%clk 0:02:49.7]} 9... Nc6 {[%clk
0:02:56.9]} 10. h3 {[%clk 0:02:29.7]} 10... Be7 {[%clk 0:02:55.6]} 11. Be3
{[%clk 0:02:26]} 11... O-O {[%clk 0:02:54]} 12. Qd2 {[%clk 0:02:25.3]} 12... Kh7
{[%clk 0:02:50.5]} 13. Rac1 {[%clk 0:02:23.1]} 13... Rc8 {[%clk 0:02:49.3]} 14.
g4 {[%clk 0:02:13.4]} 14... Bg6 {[%clk 0:02:48.7]} 15. h4 {[%clk 0:02:13.8]}
15... Bxh4 {[%clk 0:02:47.5]} 16. Nxh4 {[%clk 0:02:14.1]} 16... Qxh4 {[%clk
0:02:46.9]} 17. Kg2 {[%clk 0:02:13.1]} 17... Ndxe5 {[%clk 0:02:25.7]} 18. dxe5
{[%clk 0:02:05.5]} 18... d4 {[%clk 0:02:25.9]} 19. Bxh6 {[%clk 0:01:52.1]} 19...
dxc3 {[%clk 0:02:16.5]} 20. Rxc3 {[%clk 0:01:53]} 20... Be4+ {[%clk 0:02:01.8]}
21. f3 {[%clk 0:01:52.9]} 21... Qxg4+ {[%clk 0:02:01.7]} 22. Kf2 {[%clk
0:01:53.5]} 22... Qh4+ {[%clk 0:01:59.4]} 23. Kg2 {[%clk 0:01:49.2]} 23... gxh6
{[%clk 0:01:54.4]} 24. Rg1 {[%clk 0:00:54.3]} 24... Rg8+ {[%clk 0:01:50.7]} 25.
Kf1 {[%clk 0:00:54.8]} 25... Rxg1+ {[%clk 0:01:51]} 26. Kxg1 {[%clk 0:00:55.2]}
26... Rg8+ {[%clk 0:01:51.3]} 27. Kf1 {[%clk 0:00:55.8]} 27... Qh1+ {[%clk
0:01:48.1]} 28. Kf2 {[%clk 0:00:53.9]} 28... Qg1# {[%clk 0:01:48.6]} 0-1

[Event "*** SCC Grand Prix: Titled Tuesday Blitz"]
[Site "Chess.com"]
[Date "2020.10.13"]
[Round "3"]
[White "Oleksandr_Bortnyk"]
[Black "JakubPulpan"]
[Result "1-0"]
[WhiteElo "2906"]
[BlackElo "2674"]
[TimeControl "180+1"]
[EndTime "10:26:19 PDT"]
[Termination "Oleksandr_Bortnyk won by resignation"]

1. e4 {[%clk 0:03:00.9]} 1... e5 {[%clk 0:02:59.5]} 2. Nf3 {[%clk 0:02:57.9]}
2... Nc6 {[%clk 0:03:00]} 3. d4 {[%clk 0:02:58.4]} 3... exd4 {[%clk 0:03:00.7]}
4. Nxd4 {[%clk 0:02:59.3]} 4... Bb4+ {[%clk 0:03:01.1]} 5. c3 {[%clk 0:02:58.6]}
5... Bc5 {[%clk 0:03:01.4]} 6. Be3 {[%clk 0:02:58.5]} 6... Bb6 {[%clk
0:03:01.9]} 7. Nf5 {[%clk 0:02:58.4]} 7... Bxe3 {[%clk 0:03:02.6]} 8. Nxe3
{[%clk 0:02:58.9]} 8... Nf6 {[%clk 0:03:03.3]} 9. Nd2 {[%clk 0:02:57.9]} 9... d5
{[%clk 0:02:56.4]} 10. Bb5 {[%clk 0:02:28.4]} 10... dxe4 {[%clk 0:02:42.7]} 11.
Qa4 {[%clk 0:02:27.4]} 11... O-O {[%clk 0:02:42.5]} 12. Nxe4 {[%clk 0:01:42.2]}
12... Nxe4 {[%clk 0:02:17.6]} 13. Qxe4 {[%clk 0:01:43.1]} 13... Re8 {[%clk
0:02:17.9]} 14. Qf4 {[%clk 0:01:43.4]} 14... Ne5 {[%clk 0:02:04.4]} 15. Rd1
{[%clk 0:01:41.2]} 15... Bd7 {[%clk 0:01:50.6]} 16. Bxd7 {[%clk 0:01:40.9]}
16... Nxd7 {[%clk 0:01:51.5]} 17. Qg4 {[%clk 0:01:30]} 17... Re7 {[%clk
0:01:30.7]} 18. O-O {[%clk 0:01:27.1]} 18... h5 {[%clk 0:01:19.2]} 19. Qxh5
{[%clk 0:01:23.9]} 19... Qf8 {[%clk 0:01:11.3]} 20. Nf5 {[%clk 0:01:20.3]} 1-0

[Event "*** SCC Grand Prix: Titled Tuesday Blitz"]
[Site "Chess.com"]
[Date "2020.10.13"]
[Round "3"]
[White "venus02"]
[Black "Onischuk_V"]
[Result "1-0"]
[WhiteElo "2481"]
[BlackElo "2812"]
[TimeControl "180+1"]
[EndTime "10:26:22 PDT"]
[Termination "venus02 won by resignation"]

1. e4 {[%clk 0:03:00.9]} 1... d6 {[%clk 0:02:59]} 2. d4 {[%clk 0:03:00.4]} 2...
Nf6 {[%clk 0:02:59.5]} 3. Nc3 {[%clk 0:03:00.1]} 3... g6 {[%clk 0:03:00.2]} 4.
Nf3 {[%clk 0:02:59.2]} 4... Bg7 {[%clk 0:03:00.7]} 5. Be2 {[%clk 0:02:59.3]}
5... O-O {[%clk 0:03:01.2]} 6. O-O {[%clk 0:02:59]} 6... c6 {[%clk 0:03:01.4]}
7. a4 {[%clk 0:02:58.2]} 7... Nbd7 {[%clk 0:03:01.7]} 8. h3 {[%clk 0:02:56.9]}
8... e5 {[%clk 0:03:01.7]} 9. dxe5 {[%clk 0:02:55.8]} 9... dxe5 {[%clk
0:03:01.5]} 10. Be3 {[%clk 0:02:55]} 10... Qe7 {[%clk 0:03:00.5]} 11. Qc1 {[%clk
0:02:53.4]} 11... Nc5 {[%clk 0:02:57.1]} 12. Nd2 {[%clk 0:02:45.2]} 12... Ne6
{[%clk 0:02:53.2]} 13. Nc4 {[%clk 0:02:42.6]} 13... Nd4 {[%clk 0:02:52.2]} 14.
Re1 {[%clk 0:02:40.5]} 14... Rd8 {[%clk 0:02:40]} 15. Bf1 {[%clk 0:02:36.6]}
15... Ne8 {[%clk 0:02:34.8]} 16. b3 {[%clk 0:02:30.8]} 16... Be6 {[%clk
0:02:34]} 17. a5 {[%clk 0:02:29.9]} 17... Qc7 {[%clk 0:02:29]} 18. Ra4 {[%clk
0:02:23.2]} 18... Nd6 {[%clk 0:02:28.6]} 19. Nxd6 {[%clk 0:02:22.1]} 19... Rxd6
{[%clk 0:02:28.3]} 20. Bc4 {[%clk 0:02:21.1]} 20... Bd7 {[%clk 0:02:28.1]} 21.
Ra1 {[%clk 0:02:17.4]} 21... Rd8 {[%clk 0:02:20.4]} 22. Ne2 {[%clk 0:02:16.5]}
22... Ne6 {[%clk 0:02:16.3]} 23. Bxa7 {[%clk 0:02:14.9]} 23... Ra8 {[%clk
0:02:03.2]} 24. Bb6 {[%clk 0:02:13.3]} 24... Qc8 {[%clk 0:02:03.5]} 25. Rd1
{[%clk 0:02:01.8]} 25... Rxd1+ {[%clk 0:02:01.1]} 26. Qxd1 {[%clk 0:02:01.5]}
26... Nf4 {[%clk 0:02:00.1]} 27. Nxf4 {[%clk 0:01:57.9]} 27... exf4 {[%clk
0:01:59.9]} 28. Bd4 {[%clk 0:01:58.4]} 28... Bf8 {[%clk 0:01:54.7]} 29. Bb2
{[%clk 0:01:52.8]} 29... Bc5 {[%clk 0:01:48.5]} 30. Qd2 {[%clk 0:01:51.9]} 30...
Be6 {[%clk 0:00:57.5]} 31. Qc3 {[%clk 0:01:51]} 31... Kf8 {[%clk 0:00:58.1]} 32.
Bxe6 {[%clk 0:01:50]} 1-0

[Event "*** SCC Grand Prix: Titled Tuesday Blitz"]
[Site "Chess.com"]
[Date "2020.10.13"]
[Round "3"]
[White "BocharovD"]
[Black "AleksanderHnydiuk"]
[Result "1-0"]
[WhiteElo "2797"]
[BlackElo "2556"]
[TimeControl "180+1"]
[EndTime "10:26:25 PDT"]
[Termination "BocharovD won by resignation"]

1. d4 {[%clk 0:03:00.9]} 1... Nf6 {[%clk 0:02:59.7]} 2. c4 {[%clk 0:03:00.6]}
2... g6 {[%clk 0:02:59.2]} 3. g3 {[%clk 0:02:59.1]} 3... Bg7 {[%clk 0:02:53.8]}
4. Bg2 {[%clk 0:02:59.6]} 4... d5 {[%clk 0:02:54]} 5. cxd5 {[%clk 0:02:59.3]}
5... Nxd5 {[%clk 0:02:54.9]} 6. Nf3 {[%clk 0:02:59.7]} 6... Nc6 {[%clk
0:02:53.6]} 7. O-O {[%clk 0:03:00]} 7... Nb6 {[%clk 0:02:53.8]} 8. e3 {[%clk
0:02:59.2]} 8... O-O {[%clk 0:02:54.2]} 9. Nc3 {[%clk 0:02:57.6]} 9... Re8
{[%clk 0:02:53.4]} 10. h3 {[%clk 0:02:57.7]} 10... a5 {[%clk 0:02:45.5]} 11. d5
{[%clk 0:02:38.1]} 11... Bxc3 {[%clk 0:02:45.1]} 12. dxc6 {[%clk 0:02:37.7]}
12... Bg7 {[%clk 0:02:44.4]} 13. Nd4 {[%clk 0:02:37.3]} 13... bxc6 {[%clk
0:02:18.5]} 14. Qc2 {[%clk 0:02:32.3]} 14... Bb7 {[%clk 0:01:50.5]} 15. Nxc6
{[%clk 0:02:26.8]} 15... Qc8 {[%clk 0:01:50.4]} 16. Bd2 {[%clk 0:02:26.5]} 16...
e5 {[%clk 0:01:22.2]} 17. Rfd1 {[%clk 0:02:18.6]} 17... a4 {[%clk 0:01:20.3]}
18. Bb4 {[%clk 0:02:13.1]} 18... Kh8 {[%clk 0:01:07.6]} 19. Rac1 {[%clk
0:02:11.5]} 19... Qe6 {[%clk 0:00:52.7]} 20. a3 {[%clk 0:02:04]} 20... h5 {[%clk
0:00:45.4]} 21. Rd2 {[%clk 0:01:55.3]} 21... h4 {[%clk 0:00:42.7]} 22. g4 {[%clk
0:01:55.1]} 22... Ra6 {[%clk 0:00:34.2]} 23. Nd8 {[%clk 0:01:52.7]} 1-0

[Event "*** SCC Grand Prix: Titled Tuesday Blitz"]
[Site "Chess.com"]
[Date "2020.10.13"]
[Round "3"]
[White "Thee-Chessboy"]
[Black "starworld123"]
[Result "0-1"]
[WhiteElo "2444"]
[BlackElo "2722"]
[TimeControl "180+1"]
[EndTime "10:26:25 PDT"]
[Termination "starworld123 won by resignation"]

1. d4 {[%clk 0:03:00.9]} 1... Nf6 {[%clk 0:02:59.9]} 2. c4 {[%clk 0:03:01.3]}
2... e6 {[%clk 0:03:00.4]} 3. Nf3 {[%clk 0:03:01.7]} 3... d5 {[%clk 0:03:00.5]}
4. g3 {[%clk 0:03:01.8]} 4... dxc4 {[%clk 0:02:56.7]} 5. Qa4+ {[%clk 0:03:01.3]}
5... Nbd7 {[%clk 0:02:56.3]} 6. Qxc4 {[%clk 0:03:01.5]} 6... a6 {[%clk
0:02:56.6]} 7. Bf4 {[%clk 0:03:01.8]} 7... c5 {[%clk 0:02:45.6]} 8. dxc5 {[%clk
0:03:01.4]} 8... Bxc5 {[%clk 0:02:46.5]} 9. Bg2 {[%clk 0:03:01.8]} 9... b5
{[%clk 0:02:46.4]} 10. Qc2 {[%clk 0:03:01.4]} 10... Bb7 {[%clk 0:02:46.8]} 11.
O-O {[%clk 0:03:01.2]} 11... Rc8 {[%clk 0:02:47.1]} 12. Qd1 {[%clk 0:02:59.8]}
12... O-O {[%clk 0:02:45]} 13. Bd6 {[%clk 0:02:57.6]} 13... Re8 {[%clk 0:02:38]}
14. Bxc5 {[%clk 0:02:55.6]} 14... Nxc5 {[%clk 0:02:38.9]} 15. Nbd2 {[%clk
0:02:50]} 15... Na4 {[%clk 0:02:37.7]} 16. Qb3 {[%clk 0:02:36.6]} 16... Qe7
{[%clk 0:02:16.7]} 17. Ne5 {[%clk 0:02:23.3]} 17... Bxg2 {[%clk 0:02:14.6]} 18.
Kxg2 {[%clk 0:02:23.4]} 18... Qb7+ {[%clk 0:02:00]} 19. Kg1 {[%clk 0:02:22.2]}
19... Red8 {[%clk 0:01:50.3]} 20. Ndf3 {[%clk 0:02:13.2]} 20... Ne4 {[%clk
0:01:49.9]} 21. Rac1 {[%clk 0:02:01.8]} 21... Qb6 {[%clk 0:01:44.1]} 22. Rxc8
{[%clk 0:01:54.8]} 22... Rxc8 {[%clk 0:01:45]} 23. e3 {[%clk 0:01:52.3]} 23...
h6 {[%clk 0:01:22]} 24. Rd1 {[%clk 0:01:49.3]} 24... a5 {[%clk 0:01:14.5]} 25.
Rd7 {[%clk 0:01:46.6]} 25... Rc1+ {[%clk 0:01:05.9]} 26. Kg2 {[%clk 0:01:45.2]}
26... Nac5 {[%clk 0:01:06]} 0-1

[Event "*** SCC Grand Prix: Titled Tuesday Blitz"]
[Site "Chess.com"]
[Date "2020.10.13"]
[Round "3"]
[White "MisiekZielony"]
[Black "Natalya_Buksa"]
[Result "0-1"]
[WhiteElo "2241"]
[BlackElo "2511"]
[TimeControl "180+1"]
[EndTime "10:26:25 PDT"]
[Termination "Natalya_Buksa won by resignation"]

1. c4 {[%clk 0:03:00.4]} 1... e6 {[%clk 0:02:54.3]} 2. Nc3 {[%clk 0:03:00.2]}
2... d5 {[%clk 0:02:53.5]} 3. d4 {[%clk 0:03:00.3]} 3... Be7 {[%clk 0:02:53.2]}
4. Nf3 {[%clk 0:02:59.7]} 4... Nf6 {[%clk 0:02:53]} 5. cxd5 {[%clk 0:02:59.2]}
5... exd5 {[%clk 0:02:52.4]} 6. Bf4 {[%clk 0:02:59.1]} 6... c6 {[%clk
0:02:51.6]} 7. e3 {[%clk 0:02:59.1]} 7... Bf5 {[%clk 0:02:51]} 8. Bd3 {[%clk
0:02:58.8]} 8... Bxd3 {[%clk 0:02:50.9]} 9. Qxd3 {[%clk 0:02:58.8]} 9... O-O
{[%clk 0:02:51.3]} 10. O-O {[%clk 0:02:58.7]} 10... Nbd7 {[%clk 0:02:51.7]} 11.
h3 {[%clk 0:02:56.6]} 11... Nb6 {[%clk 0:02:50.8]} 12. Bh2 {[%clk 0:02:55.6]}
12... Bd6 {[%clk 0:02:50.8]} 13. Ne5 {[%clk 0:02:55.4]} 13... Re8 {[%clk
0:02:46]} 14. Rab1 {[%clk 0:02:47.8]} 14... Qe7 {[%clk 0:02:45.4]} 15. a3 {[%clk
0:02:29]} 15... Nfd7 {[%clk 0:02:45.1]} 16. Nxd7 {[%clk 0:02:09.6]} 16... Qxd7
{[%clk 0:02:40.4]} 17. Bxd6 {[%clk 0:02:02.1]} 17... Qxd6 {[%clk 0:02:40.2]} 18.
Qc2 {[%clk 0:01:56]} 18... Nc4 {[%clk 0:02:36]} 19. Ra1 {[%clk 0:01:46.2]} 19...
Re6 {[%clk 0:02:31]} 20. Ne2 {[%clk 0:01:44.9]} 20... Rae8 {[%clk 0:02:25.8]}
21. Nf4 {[%clk 0:01:42.5]} 21... Re4 {[%clk 0:02:24.2]} 22. Nd3 {[%clk
0:01:41.3]} 22... Rh4 {[%clk 0:02:17.9]} 23. Nf4 {[%clk 0:01:05.3]} 23... Qe7
{[%clk 0:02:00.3]} 24. g3 {[%clk 0:00:59.3]} 24... Rh6 {[%clk 0:01:59.6]} 25. h4
{[%clk 0:00:57.6]} 25... Nd6 {[%clk 0:01:59.1]} 26. Kg2 {[%clk 0:00:53.1]} 26...
Ne4 {[%clk 0:01:59.2]} 27. f3 {[%clk 0:00:48.1]} 27... Nxg3 {[%clk 0:01:56]} 28.
Kxg3 {[%clk 0:00:48]} 28... Qxh4+ {[%clk 0:01:55.5]} 0-1